fUST/lending_fUST_20260602
["ID","MTS","AMOUNT","RATE_DAILY","PERIOD"]
[423756665,1780391443000,-214.28,0.00015041,2]
[423756662,1780391443000,-500.0,0.00015041,2]
[423756664,1780391443000,-535.45,0.00015041,2]
[423756656,1780391443000,-500.0,0.00014999,2]
[423756654,1780391443000,-500.0,0.00014999,2]
[423756650,1780391443000,-504.3605417,0.00014999,2]
[423756660,1780391443000,-500.0,0.00015041,2]
[423756652,1780391443000,-500.0,0.00014999,2]
[423756655,1780391443000,-500.0,0.00014999,2]
[423756661,1780391443000,-500.0,0.00015041,2]
[423756658,1780391443000,-500.0,0.00014999,2]
[423756663,1780391443000,-500.0,0.00015041,2]
[423756674,1780391443000,-500.0,0.00015042,2]
[423756669,1780391443000,-500.0,0.00015042,2]
[423756670,1780391443000,-500.0,0.00015042,2]
[423756672,1780391443000,-500.0,0.00015042,2]
[423756675,1780391443000,-581.7,0.00015042,2]
[423756671,1780391443000,-500.0,0.00015042,2]
[423756673,1780391443000,-500.0,0.00015042,2]
[423756688,1780391443000,-500.0,0.00015043,2]
[423756677,1780391443000,-500.0,0.00015043,2]
[423756687,1780391443000,-500.0,0.00015043,2]
[423756676,1780391443000,-510.41517837,0.00015043,2]
[423756689,1780391443000,-500.0,0.00015043,2]
[423756657,1780391443000,-500.0,0.00014999,2]
[423756680,1780391443000,-500.0,0.00015043,2]
[423756666,1780391443000,-500.0,0.00015041,2]
[423756653,1780391443000,-500.0,0.00014999,2]
[423756637,1780391443000,-500.0,0.00014999,2]
[423756648,1780391443000,-500.0,0.00014999,2]
[423756678,1780391443000,-500.0,0.00015043,2]
[423756629,1780391443000,-500.0,0.00014999,2]
[423756628,1780391443000,-500.0,0.00014999,2]
[423756632,1780391443000,-500.0,0.00014999,2]
[423756630,1780391443000,-500.0,0.00014999,2]
[423756631,1780391443000,-500.0,0.00014999,2]
[423756621,1780391443000,-500.0,0.00014999,2]
[423756622,1780391443000,-500.0,0.00014999,2]
[423756623,1780391443000,-500.0,0.00014999,2]
[423756624,1780391443000,-500.0,0.00014999,2]
[423756625,1780391443000,-500.0,0.00014999,2]
[423756627,1780391443000,-500.0,0.00014999,2]
[423756626,1780391443000,-500.0,0.00014999,2]
[423756633,1780391443000,-500.0,0.00014999,2]
[423756635,1780391443000,-500.0,0.00014999,2]
[423756636,1780391443000,-500.0,0.00014999,2]
[423756644,1780391443000,-500.0,0.00014999,2]
[423756641,1780391443000,-500.0,0.00014999,2]
[423756639,1780391443000,-500.0,0.00014999,2]
[423756634,1780391443000,-500.0,0.00014999,2]
[423756642,1780391443000,-500.0,0.00014999,2]
[423756643,1780391443000,-500.0,0.00014999,2]
[423756645,1780391443000,-539.25,0.00014999,2]
[423756640,1780391443000,-500.0,0.00014999,2]
[423756646,1780391443000,-500.0,0.00014999,2]
[423756647,1780391443000,-500.0,0.00014999,2]
[423756649,1780391443000,-500.0,0.00014999,2]
[423756659,1780391443000,-500.0,0.00014999,2]
[423756679,1780391443000,-500.0,0.00015043,2]
[423756651,1780391443000,-449.2394609,0.00014999,2]
[423756690,1780391443000,-500.0,0.00015043,2]
[423756720,1780391443000,-500.0,0.00015043,2]
[423756722,1780391443000,-500.0,0.00015043,2]
[423756726,1780391443000,-500.0,0.00015043,2]
[423756729,1780391443000,-500.0,0.00015043,2]
[423756730,1780391443000,-500.0,0.00015043,2]
[423756734,1780391443000,-500.0,0.00015043,2]
[423756736,1780391443000,-43.66117975,0.00015043,2]
[423756732,1780391443000,-236.15786682,0.00015043,2]
[423756738,1780391443000,-500.0,0.00015043,2]
[423756728,1780391443000,-500.0,0.00015043,2]
[423756735,1780391443000,-500.0,0.00015043,2]
[423756731,1780391443000,-500.0,0.00015043,2]
[423756727,1780391443000,-500.0,0.00015043,2]
[423756733,1780391443000,-431.12575117,0.00015043,2]
[423756737,1780391443000,-456.33882025,0.00015043,2]
[423756740,1780391443000,-113.08207964,0.00015043,2]
[423756750,1780391443000,-156.64213106,0.00015043,2]
[423756739,1780391443000,-386.91792036,0.00015043,2]
[423756751,1780391443000,-343.35786894,0.00015043,2]
[423756741,1780391443000,-286.93887458,0.00015043,2]
[423756744,1780391443000,-500.0,0.00015043,2]
[423756742,1780391443000,-500.0,0.00014422,2]
[423756743,1780391443000,-213.06112542,0.00015043,2]
[423756745,1780391443000,-500.0,0.00015043,2]
[423756749,1780391443000,-500.0,0.00015043,2]
[423756747,1780391443000,-1000.0,0.00015043,2]
[423756684,1780391443000,-500.0,0.00015043,2]
[423756715,1780391443000,-500.0,0.00015043,2]
[423756717,1780391443000,-500.0,0.00015043,2]
[423756748,1780391443000,-500.0,0.00015043,2]
[423756716,1780391443000,-500.0,0.00015043,2]
[423756681,1780391443000,-500.0,0.00015043,2]
[423756719,1780391443000,-216.30403436,0.00015043,2]
[423756686,1780391443000,-500.0,0.00015043,2]
[423756682,1780391443000,-500.0,0.00015043,2]
[423756692,1780391443000,-500.0,0.00015043,2]
[423756691,1780391443000,-500.0,0.00015043,2]
[423756700,1780391443000,-633.52,0.00015043,2]
[423756699,1780391443000,-563.45212497,0.00015043,2]
[423756701,1780391443000,-500.0,0.00015043,2]
[423756693,1780391443000,-500.0,0.00015043,2]
[423756694,1780391443000,-500.0,0.00015043,2]
[423756696,1780391443000,-500.0,0.00015043,2]
[423756698,1780391443000,-500.0,0.00015043,2]
[423756702,1780391443000,-466.56667238,0.00015043,2]
[423756685,1780391443000,-500.0,0.00015043,2]
[423756709,1780391443000,-500.0,0.00015043,2]
[423756706,1780391443000,-500.0,0.00015043,2]
[423756746,1780391443000,-500.0,0.00015043,2]
[423756714,1780391443000,-500.0,0.00015043,2]
[423756724,1780391443000,-500.0,0.00015043,2]
[423756725,1780391443000,-500.0,0.00015043,2]
[423756723,1780391443000,-500.0,0.00015043,2]
[423756718,1780391443000,-500.0,0.00015043,2]
[423756712,1780391443000,-500.0,0.00015043,2]
[423756708,1780391443000,-497.5773093,0.00015043,2]
[423756710,1780391443000,-500.0,0.00015043,2]
[423756711,1780391443000,-500.0,0.00015043,2]
[423756705,1780391443000,-33.43332762,0.00015043,2]
[423756713,1780391443000,-513.58,0.00015043,2]
[423756782,1780391444000,-500.0,0.00015043,2]
[423756788,1780391444000,-500.0,0.00015043,2]
[423756784,1780391444000,-500.0,0.00015043,2]
[423756783,1780391444000,-500.0,0.00015043,2]
[423756787,1780391444000,-603.49,0.00015043,2]
[423756793,1780391444000,-500.0,0.00015043,2]
[423756796,1780391444000,-500.0,0.00015043,2]
[423756791,1780391444000,-500.0,0.00015043,2]
[423756799,1780391444000,-1272.85767833,0.00015234,33]
[423756781,1780391444000,-500.0,0.00015043,2]
[423756790,1780391444000,-500.0,0.00015043,2]
[423756792,1780391444000,-500.0,0.00015043,2]
[423756797,1780391444000,-182.64201152,0.00015043,2]
[423756789,1780391444000,-500.0,0.00015043,2]
[423756794,1780391444000,-500.0,0.00015043,2]
[423756795,1780391444000,-500.0,0.00015043,2]
[423756801,1780391444000,-418.93857618,0.0001245,2]
[423756800,1780391444000,-107.52246611,0.00015272,2]
[423756802,1780391444000,-500.68,0.0001245,2]
[423756803,1780391444000,-4080.38142382,0.0001245,2]
[423756813,1780391444000,-500.0,0.00015273,2]
[423756779,1780391444000,-500.0,0.00015043,2]
[423756817,1780391444000,-500.0,0.00015273,2]
[423756798,1780391444000,-306.96,0.00015043,2]
[423756780,1780391444000,-500.0,0.00015043,2]
[423756767,1780391444000,-500.0,0.00015043,2]
[423756778,1780391444000,-500.0,0.00015043,2]
[423756815,1780391444000,-500.0,0.00015273,2]
[423756754,1780391444000,-11.61218621,0.00015043,2]
[423756758,1780391444000,-500.0,0.00015043,2]
[423756752,1780391444000,-488.38781379,0.00015043,2]
[423756757,1780391444000,-500.0,0.00015043,2]
[423756755,1780391444000,-500.0,0.00015043,2]
[423756756,1780391444000,-500.0,0.00015043,2]
[423756759,1780391444000,-500.0,0.00015043,2]
[423756762,1780391444000,-500.0,0.00015043,2]
[423756761,1780391444000,-500.0,0.00015043,2]
[423756760,1780391444000,-640.59302634,0.00015043,2]
[423756763,1780391444000,-500.5509657,0.00015043,2]
[423756770,1780391444000,-500.0,0.00015043,2]
[423756765,1780391444000,-500.0,0.00015043,2]
[423756769,1780391444000,-500.0,0.00015043,2]
[423756766,1780391444000,-500.0,0.00015043,2]
[423756768,1780391444000,-500.0,0.00015043,2]
[423756772,1780391444000,-500.0,0.00015043,2]
[423756771,1780391444000,-500.0,0.00015043,2]
[423756773,1780391444000,-500.0,0.00015043,2]
[423756774,1780391444000,-500.0,0.00015043,2]
[423756785,1780391444000,-500.0,0.00015043,2]
[423756775,1780391444000,-500.0,0.00015043,2]
[423756777,1780391444000,-500.0,0.00015043,2]
[423756786,1780391444000,-500.0,0.00015043,2]
[423756776,1780391444000,-500.0,0.00015043,2]
[423756804,1780391444000,-392.47753389,0.00015272,2]
[423756841,1780391444000,-500.0,0.00015317,2]
[423756806,1780391444000,-500.0,0.00015272,2]
[423756844,1780391444000,-500.0,0.00015317,2]
[423756848,1780391444000,-210.45206336,0.00015317,2]
[423756847,1780391444000,-500.0,0.00015317,2]
[423756805,1780391444000,-500.0,0.00015272,2]
[423756850,1780391444000,-500.0,0.00015317,2]
[423756843,1780391444000,-500.0,0.00015317,2]
[423756845,1780391444000,-215.04,0.00015317,2]
[423756854,1780391444000,-288.38128728,0.00015317,2]
[423756853,1780391444000,-211.61871272,0.00015317,2]
[423756851,1780391444000,-390.94653195,0.00015317,2]
[423756849,1780391444000,-500.0,0.00015317,2]
[423756842,1780391444000,-500.0,0.00015317,2]
[423756852,1780391444000,-500.0,0.00015317,2]
[423756862,1780391444000,-500.0,0.00015863,2]
[423756866,1780391444000,-789.96470671,0.00016292,65]
[423756856,1780391444000,-500.66220661,0.00015317,2]
[423756865,1780391444000,-137.19614949,0.00016181,2]
[423756855,1780391444000,-500.0,0.00015317,2]
[423756863,1780391444000,-500.0,0.00016137,2]
[423756859,1780391444000,-166.16022019,0.00015863,2]
[423756857,1780391444000,-500.0,0.00015317,2]
[423756858,1780391444000,-500.0,0.00015589,2]
[423756861,1780391444000,-197.09032417,0.00015863,2]
[423756860,1780391444000,-204.30406504,0.00015863,2]
[423756864,1780391444000,-582.80385051,0.00016181,2]
[423756838,1780391444000,-615.96,0.00015315,2]
[423756846,1780391444000,-500.0,0.00015317,2]
[423756829,1780391444000,-441.69164258,0.00015273,2]
[423756808,1780391444000,-403.47146569,0.00015272,2]
[423756807,1780391444000,-500.0,0.00015272,2]
[423756809,1780391444000,-500.0,0.00015272,2]
[423756811,1780391444000,-500.0,0.00015273,2]
[423756810,1780391444000,-500.0,0.00015272,2]
[423756818,1780391444000,-500.0,0.00015273,2]
[423756833,1780391444000,-500.0,0.00015273,2]
[423756820,1780391444000,-500.0,0.00015273,2]
[423756823,1780391444000,-500.0,0.00015273,2]
[423756822,1780391444000,-500.0,0.00015273,2]
[423756821,1780391444000,-500.0,0.00015273,2]
[423756828,1780391444000,-500.0,0.00015273,2]
[423756819,1780391444000,-500.0,0.00015273,2]
[423756826,1780391444000,-500.0,0.00015273,2]
[423756824,1780391444000,-500.0,0.00015273,2]
[423756832,1780391444000,-460.03356686,0.00015273,2]
[423756831,1780391444000,-45.39606004,0.00015273,2]
[423756840,1780391444000,-500.0,0.00015316,2]
[423756835,1780391444000,-500.0,0.00015273,2]
[423756836,1780391444000,-498.79564326,0.00015273,2]
[423756834,1780391444000,-500.0,0.00015273,2]
[423756839,1780391444000,-500.0,0.00015315,2]
[423756830,1780391444000,-500.0,0.00015273,2]
[423756825,1780391444000,-500.0,0.00015273,2]
[423756827,1780391444000,-500.0,0.00015273,2]
[423756837,1780391444000,-500.0,0.00015273,2]
[423756870,1780391445000,-408.60813008,0.00016639,2]
[423756878,1780391445000,-231.16499053,0.00017156,2]
[423756874,1780391445000,-500.0,0.00016959,2]
[423756877,1780391445000,-153.43775402,0.00017156,2]
[423756871,1780391445000,-157.67232434,0.00016639,2]
[423756867,1780391445000,-492.42113969,0.00016292,65]
[423756881,1780391445000,-154.98468023,0.00017156,2]
[423756869,1780391445000,-332.32044039,0.00016639,2]
[423756879,1780391445000,-203.9496341,0.00017156,2]
[423756868,1780391445000,-500.0,0.00016411,2]
[423756876,1780391445000,-612.91219512,0.00017156,2]
[423756875,1780391445000,-498.48066058,0.00017156,2]
[423756880,1780391445000,-591.2709725,0.00017156,2]
[423756872,1780391445000,-236.50832399,0.00016639,2]
[423756873,1780391445000,-500.0,0.00016685,2]
[423756893,1780391445000,-144.03966449,0.000175,2]
[423756892,1780391445000,-653.90394731,0.000175,2]
[423756890,1780391445000,-407.8992682,0.00017499,2]
[423756887,1780391445000,-500.0,0.00017233,2]
[423756888,1780391445000,-1296.02221437,0.00017351,82]
[423756891,1780391445000,-10.73693347,0.000175,2]
[423756886,1780391445000,-156.58278004,0.00017169,2]
[423756884,1780391445000,-153.22520931,0.00017156,2]
[423756885,1780391445000,-162.5981733,0.00017169,2]
[423756882,1780391445000,-178.62396367,0.00017156,2]
[423756883,1780391445000,-150.56386439,0.00017156,2]
[423756889,1780391445000,-169.395318,0.00017375,2]
[423756935,1780391447000,-152.0,0.00022993,120]
[423756924,1780391447000,-185.0,0.00020618,2]
[423756921,1780391447000,-1315.14710841,0.00019468,103]
[423756923,1780391447000,-1324.70955555,0.00020527,114]
[423756929,1780391447000,-500.0,0.00022859,8]
[423756938,1780391447000,-152.0,0.00023081,2]
[423756940,1780391447000,-152.0,0.00023365,2]
[423756939,1780391447000,-152.0,0.00023365,2]
[423756928,1780391447000,-500.0,0.00022859,8]
[423756936,1780391447000,-160.0,0.00023,2]
[423756941,1780391447000,-185.0,0.00023618,2]
[423756931,1780391447000,-187.61581128,0.0002298,2]
[423756937,1780391447000,-152.0,0.00023034,2]
[423756932,1780391447000,-337.7084603,0.0002298,2]
[423756933,1780391447000,-600.37059609,0.0002298,2]
[423756930,1780391447000,-208.3894624,0.0002298,2]
[423756922,1780391447000,-1000.0,0.0001958,2]
[423756944,1780391447000,-1684.5646781,0.00023703,120]
[423756943,1780391447000,-492.0,0.00023691,10]
[423756945,1780391447000,-151.0,0.00023703,2]
[423756934,1780391447000,-937.14097733,0.0002298,2]
[423756915,1780391447000,-864.0,0.000178,2]
[423756919,1780391447000,-199.379,0.00018854,2]
[423756920,1780391447000,-300.0,0.00019178,2]
[423756899,1780391447000,-500.0,0.00014422,2]
[423756900,1780391447000,-500.0,0.00014769,2]
[423756910,1780391447000,-325.19634659,0.00017513,2]
[423756911,1780391447000,-313.16556007,0.00017513,2]
[423756907,1780391447000,-301.12772879,0.000175,2]
[423756905,1780391447000,-357.24792735,0.000175,2]
[423756908,1780391447000,-500.0,0.00017507,2]
[423756901,1780391447000,-170.62265413,0.00014769,2]
[423756904,1780391447000,-309.96936045,0.000175,2]
[423756909,1780391447000,-462.32998107,0.00017513,2]
[423756902,1780391447000,-162.83584356,0.000175,2]
[423756913,1780391447000,-444.0,0.00017618,2]
[423756903,1780391447000,-788.36129667,0.000175,2]
[423756906,1780391447000,-306.45041861,0.000175,2]
[423756912,1780391447000,-185.0,0.00017618,2]
[423756914,1780391447000,-178.58268709,0.00017781,2]
[423756946,1780391447000,-1000.0,0.00023776,5]
[423756918,1780391447000,-1305.58466139,0.0001841,93]
[423756916,1780391447000,-830.80110097,0.00017845,2]
[423756917,1780391447000,-985.45162083,0.00017845,2]
[423756925,1780391447000,-1000.0,0.00021538,10]
[423756926,1780391447000,-244.0,0.00021538,10]
[423756942,1780391447000,-1000.0,0.00023691,10]
[423756927,1780391447000,-1518.63782371,0.00022644,120]
[423756947,1780391447000,-5982.12051416,0.00024172,2]
[423756950,1780391447000,-199.87,0.00025823,10]
[423756974,1780391447000,-152.0,0.00028015,7]
[423756979,1780391447000,-300.0,0.00028438,9]
[423756970,1780391447000,-152.0,0.00027857,7]
[423756977,1780391447000,-350.0,0.00028438,9]
[423756975,1780391447000,-152.0,0.00028015,7]
[423756976,1780391447000,-152.0,0.00028071,7]
[423756978,1780391447000,-300.0,0.00028438,9]
[423756982,1780391447000,-300.0,0.00028438,9]
[423756981,1780391447000,-350.0,0.00028438,9]
[423756992,1780391447000,-379.01511469,0.0002888,10]
[423756983,1780391447000,-1986.5591998,0.00028531,2]
[423756984,1780391447000,-1000.0,0.00028666,30]
[423756987,1780391447000,-350.0,0.00028877,10]
[423756989,1780391447000,-350.0,0.00028877,10]
[423756985,1780391447000,-1000.0,0.00028666,30]
[423756991,1780391447000,-4440.21885633,0.0002888,10]
[423756986,1780391447000,-350.0,0.00028877,10]
[423756988,1780391447000,-350.0,0.00028877,10]
[423756990,1780391447000,-127722.82458142,0.0002888,10]
[423756994,1780391447000,-6967.4,0.0002888,10]
[423756971,1780391447000,-2412.09884447,0.00027938,120]
[423756993,1780391447000,-5453.058894,0.0002888,10]
[423756968,1780391447000,-152.0,0.00027802,7]
[423756969,1780391447000,-152.0,0.00027802,7]
[423756953,1780391447000,-152.0,0.00026614,30]
[423756948,1780391447000,-1842.83452027,0.00024762,120]
[423756949,1780391447000,-1850.49153248,0.0002582,120]
[423756952,1780391447000,-791.0,0.0002606,10]
[423756954,1780391447000,-152.0,0.00026614,30]
[423756951,1780391447000,-1000.0,0.0002606,10]
[423756966,1780391447000,-152.0,0.00027724,7]
[423756980,1780391447000,-350.0,0.00028438,9]
[423756956,1780391447000,-152.0,0.00026657,30]
[423756962,1780391447000,-1896.17538254,0.00026879,120]
[423756967,1780391447000,-152.0,0.00027802,7]
[423756955,1780391447000,-185.0,0.00026618,2]
[423756972,1780391447000,-152.0,0.00027959,7]
[423756965,1780391447000,-152.0,0.00027724,7]
[423756964,1780391447000,-2124.10657924,0.00027588,2]
[423756963,1780391447000,-200.16,0.00027311,10]
[423756973,1780391447000,-152.0,0.00027959,7]
[423756959,1780391447000,-500.0,0.00026688,120]
[423756960,1780391447000,-503.051,0.00026688,120]
[423756957,1780391447000,-500.0,0.00026688,120]
[423756958,1780391447000,-500.0,0.00026688,120]
[423756961,1780391447000,-731.205,0.00026688,120]
[423756996,1780391646000,212.74,8.203e-05,2]
[423757015,1780392281000,153.0,0.0002,120]
[423757016,1780392282000,153.0,0.00021,120]
[423757017,1780392283000,153.0,0.000221,120]
[423757018,1780392363000,1793.84518648,0.00022985,30]
[423757024,1780392631000,-2913.04425616,0.0001359,2]
[423757022,1780392631000,-655.62364041,0.0001359,2]
[423757025,1780392631000,-161.31063823,0.00013727,2]
[423757023,1780392631000,-1146.75208364,0.0001359,2]
[423757078,1780392632000,-500.0,0.00017504,2]
[423757062,1780392632000,-207.63720781,0.000158,2]
[423757054,1780392632000,-306.96,0.00014394,2]
[423757064,1780392632000,-196.99002093,0.00017161,2]
[423757060,1780392632000,-207.63720781,0.000156,2]
[423757056,1780392632000,-400.0,0.00015,2]
[423757058,1780392632000,-400.0,0.000153,2]
[423757057,1780392632000,-400.0,0.000152,2]
[423757063,1780392632000,-234.98109485,0.00016651,2]
[423757059,1780392632000,-400.0,0.000155,2]
[423757055,1780392632000,-160.0,0.00014396,2]
[423757065,1780392632000,-222.27256485,0.00017168,2]
[423757067,1780392632000,-469.96218969,0.00017168,2]
[423757061,1780392632000,-400.0,0.000156,2]
[423757066,1780392632000,-152.27313463,0.00017168,2]
[423757068,1780392632000,-278.44798165,0.00017168,2]
[423757076,1780392632000,-500.0,0.00017504,2]
[423757079,1780392632000,-500.0,0.00017504,2]
[423757075,1780392632000,-500.0,0.00017504,2]
[423757070,1780392632000,-500.0,0.00017504,2]
[423757074,1780392632000,-500.0,0.00017504,2]
[423757069,1780392632000,-500.0,0.00017504,2]
[423757073,1780392632000,-500.0,0.00017504,2]
[423757077,1780392632000,-500.0,0.00017504,2]
[423757071,1780392632000,-500.0,0.00017504,2]
[423757072,1780392632000,-500.0,0.00017504,2]
[423757053,1780392632000,-500.0,0.00014394,2]
[423757048,1780392632000,-500.0,0.00014394,2]
[423757027,1780392632000,-1200.0,0.00014392,2]
[423757029,1780392632000,-566.57713103,0.00014394,2]
[423757028,1780392632000,-300.0,0.00014393,2]
[423757032,1780392632000,-500.0,0.00014394,2]
[423757033,1780392632000,-500.0,0.00014394,2]
[423757037,1780392632000,-500.0,0.00014394,2]
[423757035,1780392632000,-500.0,0.00014394,2]
[423757034,1780392632000,-500.0,0.00014394,2]
[423757031,1780392632000,-271.27007714,0.00014394,2]
[423757026,1780392632000,-415.519,0.00014296,2]
[423757036,1780392632000,-500.0,0.00014394,2]
[423757052,1780392632000,-500.0,0.00014394,2]
[423757038,1780392632000,-500.0,0.00014394,2]
[423757049,1780392632000,-500.0,0.00014394,2]
[423757051,1780392632000,-500.0,0.00014394,2]
[423757050,1780392632000,-556.62,0.00014394,2]
[423757041,1780392632000,-182.64201152,0.00014394,2]
[423757040,1780392632000,-500.0,0.00014394,2]
[423757042,1780392632000,-500.0,0.00014394,2]
[423757045,1780392632000,-500.0,0.00014394,2]
[423757044,1780392632000,-500.0,0.00014394,2]
[423757043,1780392632000,-500.0,0.00014394,2]
[423757047,1780392632000,-500.0,0.00014394,2]
[423757046,1780392632000,-500.0,0.00014394,2]
[423757039,1780392632000,-500.0,0.00014394,2]
[423757080,1780392632000,-500.0,0.00017504,2]
[423757098,1780392632000,-310.64929149,0.00017505,2]
[423757089,1780392632000,-500.0,0.00017504,2]
[423757115,1780392632000,-291.02147661,0.00017513,2]
[423757111,1780392632000,-265.01686088,0.00017513,2]
[423757112,1780392632000,-256.95873525,0.00017513,2]
[423757114,1780392632000,-156.55654597,0.00017513,2]
[423757117,1780392632000,-304.54626926,0.00017513,2]
[423757127,1780392632000,-189.01373693,0.00017513,2]
[423757128,1780392632000,-251.282635,0.00017513,2]
[423757116,1780392632000,-240.83237558,0.00017513,2]
[423757120,1780392632000,-556.89596331,0.00017513,2]
[423757119,1780392632000,-288.66341792,0.00017513,2]
[423757122,1780392632000,-214.85687231,0.00017513,2]
[423757107,1780392632000,-166.30924153,0.00017505,2]
[423757121,1780392632000,-356.29884687,0.00017513,2]
[423757125,1780392632000,-226.7375282,0.00017513,2]
[423757124,1780392632000,-368.50311651,0.00017513,2]
[423757126,1780392632000,-238.2277503,0.00017513,2]
[423757132,1780392632000,-185.0,0.000192,2]
[423757129,1780392632000,-205.41008863,0.00018,2]
[423757131,1780392632000,-199.379,0.000192,2]
[423757130,1780392632000,-5376.96831605,0.00019,7]
[423757133,1780392632000,-191.57616589,0.00019899,2]
[423757135,1780392632000,-12164.22310574,0.000199,2]
[423757134,1780392632000,-24691.95494082,0.000199,2]
[423757136,1780392632000,-336.531683,0.000199,2]
[423757123,1780392632000,-272.71805743,0.00017513,2]
[423757110,1780392632000,-444.5451297,0.00017513,2]
[423757118,1780392632000,-396.19817907,0.00017513,2]
[423757113,1780392632000,-245.33460929,0.00017513,2]
[423757082,1780392632000,-500.0,0.00017504,2]
[423757083,1780392632000,-539.26320636,0.00017504,2]
[423757109,1780392632000,-195.93343579,0.00017513,2]
[423757088,1780392632000,-500.0,0.00017504,2]
[423757085,1780392632000,-500.0,0.00017504,2]
[423757086,1780392632000,-500.0,0.00017504,2]
[423757087,1780392632000,-500.0,0.00017504,2]
[423757090,1780392632000,-500.0,0.00017504,2]
[423757097,1780392632000,-166.38713037,0.00017505,2]
[423757093,1780392632000,-169.23348224,0.00017505,2]
[423757100,1780392632000,-399.93710389,0.00017505,2]
[423757099,1780392632000,-311.51015173,0.00017505,2]
[423757084,1780392632000,-500.0,0.00017504,2]
[423757102,1780392632000,-236.18948584,0.00017505,2]
[423757092,1780392632000,-500.0,0.00017504,2]
[423757108,1780392632000,-216.87201662,0.00017513,2]
[423757105,1780392632000,-393.98004187,0.00017505,2]
[423757106,1780392632000,-166.90946017,0.00017505,2]
[423757104,1780392632000,-183.92887802,0.00017505,2]
[423757095,1780392632000,-213.85248148,0.00017505,2]
[423757081,1780392632000,-500.0,0.00017504,2]
[423757103,1780392632000,-164.33636829,0.00017505,2]
[423757091,1780392632000,-500.0,0.00017504,2]
[423757096,1780392632000,-250.07231548,0.00017505,2]
[423757101,1780392632000,-158.43129886,0.00017505,2]
[423757094,1780392632000,-165.84229699,0.00017505,2]
[423757138,1780392639000,-328.63716708,0.000199,2]
[423757142,1780392640000,-305.98425736,0.000199,2]
[423757141,1780392640000,-415.519,0.000199,2]
[423757254,1780392643000,-9923.08897696,0.000199,2]
[423757497,1780392646000,-6954.3,0.000199,2]
[423757526,1780392646000,-4918.1,0.000199,2]
[423757523,1780392646000,-2383.0900013,0.000199,2]
[423757688,1780392657000,100000.0,0.00022986,30]
[423757689,1780392659000,100000.0,0.00022986,30]
[423757690,1780392661000,91065.88376716,0.00022986,30]
[423757694,1780392926000,-8934.11623284,0.00022986,30]
[423757793,1780393832000,-300.0,0.00014073,2]
[423757785,1780393832000,-1165.11069138,0.00013932,2]
[423757790,1780393832000,-300.0,0.00014073,2]
[423757788,1780393832000,-942.09813398,0.00013933,2]
[423757787,1780393832000,-2626.80959875,0.00013933,2]
[423757792,1780393832000,-300.0,0.00014073,2]
[423757791,1780393832000,-300.0,0.00014073,2]
[423757784,1780393832000,-5000.0,0.00013794,2]
[423757786,1780393832000,-34.88930862,0.00013932,2]
[423757789,1780393832000,-1431.09226727,0.00013933,2]
[423757796,1780393832000,-8977.86294728,0.00014833,2]
[423757798,1780393832000,-163.86133931,0.00014848,2]
[423757804,1780393832000,-127178.07528478,0.00017067,2]
[423757805,1780393832000,-5830.43915122,0.00017067,2]
[423757800,1780393832000,-420.0,0.00015417,2]
[423757801,1780393832000,-162.797414,0.0001669,2]